[Event "*** MasterClass Titled Tuesday Blitz"]
[Site "Chess.com"]
[Date "2017.12.12"]
[Round "2"]
[White "destroyer305"]
[Black "viktoriani"]
[Result "1-0"]
[WhiteElo "2195"]
[BlackElo "2069"]
[TimeControl "180+2"]
[EndTime "13:23:53 PST"]
[Termination "destroyer305 won by resignation"]

1. e4 {[%clk 0:03:01.1]} 1... c5 {[%clk 0:03:00.1]} 2. d4 {[%clk 0:02:54.8]}
2... cxd4 {[%clk 0:03:00.3]} 3. c3 {[%clk 0:02:53.9]} 3... dxc3 {[%clk
0:02:59.5]} 4. Nxc3 {[%clk 0:02:51.2]} 4... Nc6 {[%clk 0:02:57]} 5. Nf3 {[%clk
0:02:52.7]} 5... g6 {[%clk 0:02:56.7]} 6. Bc4 {[%clk 0:02:11.7]} 6... Bg7 {[%clk
0:02:38.7]} 7. O-O {[%clk 0:01:54.5]} 7... Nf6 {[%clk 0:02:34.4]} 8. e5 {[%clk
0:01:38.1]} 8... Ng4 {[%clk 0:02:08.9]} 9. Bxf7+ {[%clk 0:01:18.4]} 9... Kxf7
{[%clk 0:02:09.1]} 10. Ng5+ {[%clk 0:01:19.6]} 10... Ke8 {[%clk 0:02:10]} 11.
Qxg4 {[%clk 0:01:21.1]} 11... Nxe5 {[%clk 0:02:10.3]} 12. Qe2 {[%clk 0:01:21.2]}
12... d6 {[%clk 0:01:58.5]} 13. h3 {[%clk 0:01:11.3]} 13... h6 {[%clk
0:01:53.4]} 14. Nge4 {[%clk 0:01:12.3]} 14... d5 {[%clk 0:01:46.9]} 15. Nc5
{[%clk 0:01:10]} 15... b6 {[%clk 0:01:39.1]} 16. Nb3 {[%clk 0:01:09.7]} 16... d4
{[%clk 0:01:19.8]} 17. Ne4 {[%clk 0:01:09.6]} 17... a5 {[%clk 0:01:16.1]} 18.
Rd1 {[%clk 0:01:10.2]} 18... Ba6 {[%clk 0:01:11.1]} 19. Qe1 {[%clk 0:01:11.2]}
19... Nd3 {[%clk 0:00:54.9]} 20. Qd2 {[%clk 0:01:06.7]} 20... a4 {[%clk
0:00:56]} 21. Qc2 {[%clk 0:00:39.1]} 21... axb3 {[%clk 0:00:52.4]} 22. Qxb3
{[%clk 0:00:41]} 22... Nc5 {[%clk 0:00:46]} 23. Qg3 {[%clk 0:00:38.5]} 23... g5
{[%clk 0:00:36.8]} 24. Qg4 {[%clk 0:00:33]} 24... Qd7 {[%clk 0:00:31]} 25. Qh5+
{[%clk 0:00:33.4]} 25... Kf8 {[%clk 0:00:24.5]} 26. Ng3 {[%clk 0:00:35.3]} 26...
Qe8 {[%clk 0:00:18.2]} 27. Qf3+ {[%clk 0:00:35.1]} 27... Kg8 {[%clk 0:00:19.3]}
28. b4 {[%clk 0:00:34.1]} 28... Nd7 {[%clk 0:00:16.5]} 29. Qd5+ {[%clk 0:00:35]}
29... e6 {[%clk 0:00:16]} 30. Qc6 {[%clk 0:00:35.2]} 30... Ne5 {[%clk
0:00:16.3]} 31. Qe4 {[%clk 0:00:35.6]} 31... Qc6 {[%clk 0:00:16.2]} 32. Qe1
{[%clk 0:00:35.5]} 32... Bb7 {[%clk 0:00:17.1]} 33. f3 {[%clk 0:00:35.4]} 33...
Rf8 {[%clk 0:00:12.3]} 34. Bb2 {[%clk 0:00:35.8]} 34... Rxf3 {[%clk 0:00:12.5]}
35. Bxd4 {[%clk 0:00:35.1]} 35... Re3 {[%clk 0:00:12.4]} 36. Qf2 {[%clk
0:00:34]} 36... Rxg3 {[%clk 0:00:09.4]} 37. Qxg3 {[%clk 0:00:34.6]} 37... Ng6
{[%clk 0:00:09.5]} 38. Bxg7 {[%clk 0:00:34.3]} 38... Kxg7 {[%clk 0:00:10.4]} 39.
Rd6 {[%clk 0:00:35.9]} 39... Qe4 {[%clk 0:00:10.8]} 40. Qc3+ {[%clk 0:00:36.8]}
40... Ne5 {[%clk 0:00:09.8]} 41. Rd2 {[%clk 0:00:37]} 41... Kg6 {[%clk
0:00:10.6]} 42. Rf1 {[%clk 0:00:37.1]} 42... Rc8 {[%clk 0:00:11.7]} 43. Qg3
{[%clk 0:00:37.4]} 43... Rc4 {[%clk 0:00:11.7]} 44. Re1 {[%clk 0:00:38.4]} 44...
Qxg2+ {[%clk 0:00:07]} 45. Qxg2 {[%clk 0:00:39]} 45... Bxg2 {[%clk 0:00:08]} 46.
Kxg2 {[%clk 0:00:40.6]} 46... Nf7 {[%clk 0:00:05]} 47. Rxe6+ {[%clk 0:00:40.4]}
47... Kf5 {[%clk 0:00:06.6]} 48. Rxb6 {[%clk 0:00:42]} 48... Ne5 {[%clk
0:00:06.5]} 49. Rb5 {[%clk 0:00:42.2]} 49... Kf4 {[%clk 0:00:05.3]} 50. Rf2+
{[%clk 0:00:43.4]} 50... Ke4 {[%clk 0:00:05.4]} 51. Re2+ {[%clk 0:00:44.8]} 1-0

[Event "*** MasterClass Titled Tuesday Blitz"]
[Site "Chess.com"]
[Date "2017.12.12"]
[Round "2"]
[White "gmcorrales"]
[Black "A-Fier"]
[Result "0-1"]
[WhiteElo "2618"]
[BlackElo "2608"]
[TimeControl "180+2"]
[EndTime "13:23:57 PST"]
[Termination "A-Fier won by resignation"]

1. e4 {[%clk 0:03:00]} 1... c6 {[%clk 0:02:42.2]} 2. d4 {[%clk 0:03:00.6]} 2...
d5 {[%clk 0:02:40.8]} 3. e5 {[%clk 0:03:01.2]} 3... Bf5 {[%clk 0:02:41.1]} 4.
Nf3 {[%clk 0:03:02.3]} 4... e6 {[%clk 0:02:42.5]} 5. Be2 {[%clk 0:03:03.9]} 5...
c5 {[%clk 0:02:44]} 6. Be3 {[%clk 0:03:03.7]} 6... Qb6 {[%clk 0:02:45.1]} 7. Nc3
{[%clk 0:02:57.3]} 7... Nc6 {[%clk 0:02:43.7]} 8. O-O {[%clk 0:02:43.5]} 8...
Qxb2 {[%clk 0:02:43.7]} 9. Nb5 {[%clk 0:02:38.6]} 9... c4 {[%clk 0:02:42.8]} 10.
Nc7+ {[%clk 0:02:31.6]} 10... Kd7 {[%clk 0:02:43.9]} 11. Nxa8 {[%clk 0:02:33.1]}
11... Bxc2 {[%clk 0:02:45.3]} 12. Qe1 {[%clk 0:02:15.7]} 12... Bb4 {[%clk
0:02:39]} 13. Bd2 {[%clk 0:02:16]} 13... c3 {[%clk 0:02:36.7]} 14. Be3 {[%clk
0:02:07.2]} 14... Nge7 {[%clk 0:02:36.4]} 15. Ng5 {[%clk 0:01:59.7]} 15... Bg6
{[%clk 0:02:27.9]} 16. a3 {[%clk 0:01:59.1]} 16... Ba5 {[%clk 0:02:26.6]} 17.
Nxf7 {[%clk 0:01:55.3]} 17... Rxa8 {[%clk 0:02:06.4]} 18. Ng5 {[%clk 0:01:54.5]}
18... c2 {[%clk 0:02:01.5]} 19. Bd2 {[%clk 0:01:46.1]} 19... Bxd2 {[%clk
0:02:02.4]} 20. Qxd2 {[%clk 0:01:48]} 20... Nxd4 {[%clk 0:02:03.8]} 21. Bg4
{[%clk 0:01:46.2]} 21... Rc8 {[%clk 0:02:00.4]} 22. Rac1 {[%clk 0:01:31.4]}
22... Bf5 {[%clk 0:01:59.7]} 23. Bxf5 {[%clk 0:01:04.5]} 23... Nexf5 {[%clk
0:02:01.6]} 24. g4 {[%clk 0:01:03.5]} 24... Nb3 {[%clk 0:01:37.4]} 25. Qb4
{[%clk 0:01:03.8]} 25... Nfd4 {[%clk 0:00:33.7]} 26. Qd6+ {[%clk 0:00:45.6]}
26... Ke8 {[%clk 0:00:35]} 27. Nxe6 {[%clk 0:00:45.8]} 27... Nxc1 {[%clk
0:00:27.6]} 28. Nxg7+ {[%clk 0:00:28.8]} 28... Kf7 {[%clk 0:00:27.9]} 29. Qd7+
{[%clk 0:00:23.7]} 29... Kg6 {[%clk 0:00:23.9]} 30. Nh5 {[%clk 0:00:17.8]} 30...
Nde2+ {[%clk 0:00:21]} 31. Kh1 {[%clk 0:00:18.1]} 31... Qxe5 {[%clk 0:00:22.3]}
32. Qxc8 {[%clk 0:00:15.3]} 32... Nd3 {[%clk 0:00:19.3]} 33. Qxc2 {[%clk
0:00:11.3]} 33... Qe4+ {[%clk 0:00:20.1]} 34. f3 {[%clk 0:00:12.4]} 34... Nf2+
{[%clk 0:00:21.7]} 35. Rxf2 {[%clk 0:00:13.8]} 35... Qxc2 {[%clk 0:00:23.6]} 36.
Kg2 {[%clk 0:00:13.6]} 36... Kf7 {[%clk 0:00:21.5]} 37. h4 {[%clk 0:00:11.3]}
37... d4 {[%clk 0:00:22.7]} 38. g5 {[%clk 0:00:09.6]} 38... d3 {[%clk
0:00:23.8]} 39. f4 {[%clk 0:00:07.9]} 39... Qc6+ {[%clk 0:00:24.4]} 40. Kh3
{[%clk 0:00:08.7]} 40... Qh1+ {[%clk 0:00:24.2]} 41. Kg4 {[%clk 0:00:09.7]}
41... Qg1+ {[%clk 0:00:25.5]} 42. Kf3 {[%clk 0:00:10.7]} 42... Nd4+ {[%clk
0:00:26.4]} 43. Ke3 {[%clk 0:00:11.8]} 43... Nf5+ {[%clk 0:00:27.6]} 44. Kf3
{[%clk 0:00:13.1]} 44... Nxh4+ {[%clk 0:00:28.7]} 45. Ke3 {[%clk 0:00:14.2]}
45... Ng2+ {[%clk 0:00:30]} 46. Kf3 {[%clk 0:00:15]} 46... Ne1+ {[%clk
0:00:31.4]} 47. Ke3 {[%clk 0:00:16.2]} 47... Nc2+ {[%clk 0:00:32.6]} 48. Kf3
{[%clk 0:00:17.3]} 48... Qd1+ {[%clk 0:00:32]} 49. Ke4 {[%clk 0:00:16.8]} 49...
Qxh5 {[%clk 0:00:33.9]} 50. Kxd3 {[%clk 0:00:17.7]} 50... Ne1+ {[%clk
0:00:32.4]} 51. Ke4 {[%clk 0:00:17.9]} 51... Qh4 {[%clk 0:00:32.2]} 52. Rd2
{[%clk 0:00:18.5]} 52... Qh1+ {[%clk 0:00:32.8]} 53. Kf5 {[%clk 0:00:19.7]}
53... Qh3+ {[%clk 0:00:32.4]} 54. Ke4 {[%clk 0:00:20.9]} 54... Qf3+ {[%clk
0:00:33.4]} 55. Kd4 {[%clk 0:00:21.6]} 55... Qxf4+ {[%clk 0:00:34.4]} 0-1

[Event "*** MasterClass Titled Tuesday Blitz"]
[Site "Chess.com"]
[Date "2017.12.12"]
[Round "2"]
[White "Divertissement"]
[Black "matiss90"]
[Result "0-1"]
[WhiteElo "2390"]
[BlackElo "2326"]
[TimeControl "180+2"]
[EndTime "13:24:03 PST"]
[Termination "matiss90 won by resignation"]

1. e4 {[%clk 0:02:58.6]} 1... c5 {[%clk 0:03:00.6]} 2. Nf3 {[%clk 0:02:59.8]}
2... d6 {[%clk 0:03:01.7]} 3. c3 {[%clk 0:03:00.9]} 3... Nf6 {[%clk 0:03:02.3]}
4. h3 {[%clk 0:03:01.7]} 4... g6 {[%clk 0:03:02.8]} 5. Bd3 {[%clk 0:03:03]} 5...
Bg7 {[%clk 0:03:03.6]} 6. Bc2 {[%clk 0:03:04.3]} 6... O-O {[%clk 0:03:04.5]} 7.
O-O {[%clk 0:03:05.9]} 7... Nc6 {[%clk 0:03:05.2]} 8. d4 {[%clk 0:03:05.8]} 8...
cxd4 {[%clk 0:03:06.2]} 9. cxd4 {[%clk 0:03:07.2]} 9... Nb4 {[%clk 0:03:06.9]}
10. Bb3 {[%clk 0:03:08.6]} 10... Nxe4 {[%clk 0:03:05.4]} 11. Qe1 {[%clk
0:03:08.9]} 11... Nxf2 {[%clk 0:02:38.1]} 12. Qxf2 {[%clk 0:02:53.7]} 12... Nd3
{[%clk 0:02:37.4]} 13. Qd2 {[%clk 0:02:54.4]} 13... Nxc1 {[%clk 0:02:37.2]} 14.
Qxc1 {[%clk 0:02:55.6]} 14... Qb6 {[%clk 0:02:33.7]} 15. Qd2 {[%clk 0:02:49]}
15... e5 {[%clk 0:02:34.5]} 16. Kh1 {[%clk 0:02:45.6]} 16... e4 {[%clk
0:02:34.8]} 17. Ng5 {[%clk 0:02:44.1]} 17... Bf5 {[%clk 0:02:30.3]} 18. g4
{[%clk 0:02:40.5]} 18... e3 {[%clk 0:02:12.1]} 19. Qg2 {[%clk 0:02:20.2]} 19...
Bd3 {[%clk 0:01:43.5]} 20. Rxf7 {[%clk 0:02:06.5]} 20... Rxf7 {[%clk 0:01:36]}
21. Bxf7+ {[%clk 0:02:05.4]} 21... Kh8 {[%clk 0:01:35.7]} 22. Nc3 {[%clk
0:02:03.5]} 22... Qxd4 {[%clk 0:01:28.9]} 23. Bd5 {[%clk 0:01:54.1]} 23... h6
{[%clk 0:01:21.8]} 24. Ne6 {[%clk 0:01:52.3]} 24... Qe5 {[%clk 0:01:20.4]} 25.
Re1 {[%clk 0:01:43.4]} 25... Re8 {[%clk 0:01:10.7]} 26. Nxg7 {[%clk 0:01:38]}
26... Kxg7 {[%clk 0:01:10.6]} 27. Bf3 {[%clk 0:01:21.5]} 27... Rf8 {[%clk
0:01:04.8]} 28. Kg1 {[%clk 0:00:48.4]} 28... Qf4 {[%clk 0:00:45.2]} 29. Nd5
{[%clk 0:00:32.8]} 29... Qxf3 {[%clk 0:00:40.1]} 30. Rxe3 {[%clk 0:00:33.3]}
30... Qxg2+ {[%clk 0:00:30.2]} 31. Kxg2 {[%clk 0:00:34.7]} 31... Bc4 {[%clk
0:00:28.1]} 32. Nc3 {[%clk 0:00:22]} 32... d5 {[%clk 0:00:28.7]} 33. Re1 {[%clk
0:00:16]} 33... d4 {[%clk 0:00:29.4]} 34. Ne4 {[%clk 0:00:15.8]} 34... Bxa2
{[%clk 0:00:27.2]} 35. Kg3 {[%clk 0:00:15.3]} 35... Bd5 {[%clk 0:00:26.6]} 36.
Nc5 {[%clk 0:00:15.1]} 36... Rf3+ {[%clk 0:00:25.5]} 37. Kh2 {[%clk 0:00:15.5]}
37... Rf2+ {[%clk 0:00:26.2]} 38. Kg3 {[%clk 0:00:15.7]} 38... Rf3+ {[%clk
0:00:19.1]} 39. Kh2 {[%clk 0:00:13.7]} 39... g5 {[%clk 0:00:19.6]} 40. Nd7
{[%clk 0:00:11.7]} 40... Rf2+ {[%clk 0:00:18.8]} 41. Kg1 {[%clk 0:00:13.4]}
41... Rg2+ {[%clk 0:00:19]} 42. Kf1 {[%clk 0:00:14.6]} 42... Rxb2 {[%clk
0:00:18.6]} 43. Re7+ {[%clk 0:00:16.1]} 43... Kg6 {[%clk 0:00:17]} 44. Nf8+
{[%clk 0:00:16.5]} 44... Kf6 {[%clk 0:00:15.9]} 45. Rc7 {[%clk 0:00:17.9]} 45...
Bg2+ {[%clk 0:00:14.4]} 46. Ke1 {[%clk 0:00:18.8]} 46... d3 {[%clk 0:00:14.4]}
47. Nd7+ {[%clk 0:00:18.5]} 47... Ke7 {[%clk 0:00:14.8]} 48. Nc5+ {[%clk
0:00:17.7]} 48... Kd6 {[%clk 0:00:15.5]} 49. Nxd3 {[%clk 0:00:14.6]} 49... Kxc7
{[%clk 0:00:16.2]} 50. Nxb2 {[%clk 0:00:15.3]} 50... Bxh3 {[%clk 0:00:17.9]} 0-1

[Event "*** MasterClass Titled Tuesday Blitz"]
[Site "Chess.com"]
[Date "2017.12.12"]
[Round "2"]
[White "Mykola-Bortnyk"]
[Black "GrigorGrigorov"]
[Result "0-1"]
[WhiteElo "2680"]
[BlackElo "2574"]
[TimeControl "180+2"]
[EndTime "13:24:17 PST"]
[Termination "GrigorGrigorov won by resignation"]

1. e4 {[%clk 0:03:00.9]} 1... c5 {[%clk 0:03:00]} 2. c3 {[%clk 0:03:01.5]} 2...
Nf6 {[%clk 0:03:00]} 3. e5 {[%clk 0:03:02.5]} 3... Nd5 {[%clk 0:03:00.8]} 4. d4
{[%clk 0:03:04.1]} 4... cxd4 {[%clk 0:03:00.5]} 5. Nf3 {[%clk 0:03:05]} 5... d6
{[%clk 0:03:01.6]} 6. cxd4 {[%clk 0:03:05.9]} 6... Nc6 {[%clk 0:03:00.9]} 7. Bc4
{[%clk 0:03:07]} 7... dxe5 {[%clk 0:03:01.5]} 8. Bxd5 {[%clk 0:03:07.8]} 8...
Qxd5 {[%clk 0:03:01.5]} 9. Nc3 {[%clk 0:03:09.4]} 9... Qd6 {[%clk 0:03:02.5]}
10. d5 {[%clk 0:03:10.5]} 10... Nd4 {[%clk 0:03:02.5]} 11. Nxd4 {[%clk
0:03:11.8]} 11... exd4 {[%clk 0:03:02.9]} 12. Qxd4 {[%clk 0:03:13.7]} 12... e5
{[%clk 0:03:02.9]} 13. Qe4 {[%clk 0:03:14.9]} 13... f5 {[%clk 0:03:01.4]} 14.
Qe2 {[%clk 0:03:15.8]} 14... Bd7 {[%clk 0:02:58.6]} 15. Bf4 {[%clk 0:03:16.4]}
15... Kf7 {[%clk 0:02:47.9]} 16. Bxe5 {[%clk 0:03:15.6]} 16... Qa6 {[%clk
0:02:44.9]} 17. Qxa6 {[%clk 0:02:53.9]} 17... bxa6 {[%clk 0:02:46.8]} 18. O-O-O
{[%clk 0:02:52.3]} 18... Bc5 {[%clk 0:02:42.8]} 19. Bd4 {[%clk 0:02:51.4]} 19...
Bd6 {[%clk 0:02:42.9]} 20. Rhe1 {[%clk 0:02:48.1]} 20... Rhc8 {[%clk 0:02:39.2]}
21. Kb1 {[%clk 0:02:48]} 21... a5 {[%clk 0:02:38.5]} 22. Be5 {[%clk 0:02:43.5]}
22... Bc5 {[%clk 0:02:38.2]} 23. f4 {[%clk 0:02:36.3]} 23... Bb4 {[%clk
0:02:24.1]} 24. a3 {[%clk 0:02:35.9]} 24... Bc5 {[%clk 0:02:22.1]} 25. Rd3
{[%clk 0:02:01.1]} 25... g6 {[%clk 0:02:18]} 26. Red1 {[%clk 0:01:48.3]} 26...
Re8 {[%clk 0:02:16.8]} 27. g3 {[%clk 0:01:46.3]} 27... Rac8 {[%clk 0:02:08.2]}
28. Ka2 {[%clk 0:01:46.5]} 28... g5 {[%clk 0:02:04.6]} 29. b3 {[%clk 0:01:37.9]}
29... g4 {[%clk 0:02:01.3]} 30. Kb2 {[%clk 0:01:32.5]} 30... h5 {[%clk
0:02:01.2]} 31. a4 {[%clk 0:01:33.1]} 31... Bb4 {[%clk 0:02:01]} 32. d6 {[%clk
0:01:29.7]} 32... Rc6 {[%clk 0:01:57.5]} 33. Nb5 {[%clk 0:01:25.9]} 33... Rec8
{[%clk 0:01:54.8]} 34. Nc7 {[%clk 0:01:27]} 34... Kg6 {[%clk 0:01:42.2]} 35. Bc3
{[%clk 0:01:18.1]} 35... Bc5 {[%clk 0:01:31.9]} 36. Bxa5 {[%clk 0:01:19]} 36...
h4 {[%clk 0:01:32.7]} 37. b4 {[%clk 0:01:15.8]} 37... Bf2 {[%clk 0:01:29]} 38.
Rc1 {[%clk 0:01:10.2]} 38... Rxc1 {[%clk 0:01:24.6]} 39. Kxc1 {[%clk 0:01:12.1]}
39... hxg3 {[%clk 0:01:26.1]} 40. hxg3 {[%clk 0:01:13.1]} 40... Rh8 {[%clk
0:01:26.1]} 41. b5 {[%clk 0:00:53.2]} 41... Rh3 {[%clk 0:01:26]} 42. Kc2 {[%clk
0:00:49.3]} 42... Rxg3 {[%clk 0:01:22.7]} 43. Nd5 {[%clk 0:00:43.4]} 43... Rg1
{[%clk 0:01:12.9]} 44. b6 {[%clk 0:00:37.3]} 44... Bxa4+ {[%clk 0:01:03.1]} 45.
Kb2 {[%clk 0:00:38.7]} 45... axb6 {[%clk 0:00:55.8]} 46. Bxb6 {[%clk 0:00:40.2]}
46... g3 {[%clk 0:00:54.3]} 47. Rd2 {[%clk 0:00:28.5]} 47... Rf1 {[%clk
0:00:43.4]} 48. Bxf2 {[%clk 0:00:21.3]} 48... Rxf2 {[%clk 0:00:32.2]} 49. Rxf2
{[%clk 0:00:22]} 49... gxf2 {[%clk 0:00:33.7]} 50. Ne3 {[%clk 0:00:23.9]} 50...
Kf7 {[%clk 0:00:28]} 51. Kc3 {[%clk 0:00:24.8]} 51... Bb5 {[%clk 0:00:26.5]} 52.
Kd4 {[%clk 0:00:26.2]} 52... Ke6 {[%clk 0:00:24.8]} 53. d7 {[%clk 0:00:25.9]}
53... Bxd7 {[%clk 0:00:21.3]} 54. Kc4 {[%clk 0:00:27.1]} 54... Bc8 {[%clk
0:00:21.9]} 55. Kb5 {[%clk 0:00:25.1]} 55... Bb7 {[%clk 0:00:23]} 56. Kb6 {[%clk
0:00:23.3]} 56... Bg2 {[%clk 0:00:23.4]} 0-1

[Event "*** MasterClass Titled Tuesday Blitz"]
[Site "Chess.com"]
[Date "2017.12.12"]
[Round "2"]
[White "dolynachess"]
[Black "Blitzstream"]
[Result "1-0"]
[WhiteElo "2297"]
[BlackElo "2492"]
[TimeControl "180+2"]
[EndTime "13:24:22 PST"]
[Termination "dolynachess won by resignation"]

1. d4 {[%clk 0:03:01.9]} 1... Nf6 {[%clk 0:02:59.6]} 2. c4 {[%clk 0:03:00.1]}
2... d6 {[%clk 0:03:01]} 3. Nc3 {[%clk 0:03:01.1]} 3... e5 {[%clk 0:03:01.9]} 4.
d5 {[%clk 0:02:56.6]} 4... Bf5 {[%clk 0:02:48.5]} 5. Bg5 {[%clk 0:02:33.8]} 5...
Be7 {[%clk 0:02:45]} 6. Bxf6 {[%clk 0:02:31.1]} 6... Bxf6 {[%clk 0:02:46]} 7. e4
{[%clk 0:02:32]} 7... Bg6 {[%clk 0:02:43.7]} 8. Be2 {[%clk 0:02:30.8]} 8... O-O
{[%clk 0:02:43.9]} 9. Bh5 {[%clk 0:02:30.9]} 9... Bxh5 {[%clk 0:02:19.9]} 10.
Qxh5 {[%clk 0:02:30.3]} 10... g6 {[%clk 0:02:21.8]} 11. Qe2 {[%clk 0:02:28.2]}
11... Bg5 {[%clk 0:02:22.6]} 12. Nf3 {[%clk 0:02:24.5]} 12... Bh6 {[%clk
0:02:23.6]} 13. h4 {[%clk 0:02:20]} 13... Nd7 {[%clk 0:02:19.5]} 14. h5 {[%clk
0:02:16.3]} 14... Kg7 {[%clk 0:02:19.3]} 15. Kd1 {[%clk 0:01:33.1]} 15... a5
{[%clk 0:02:18.1]} 16. Kc2 {[%clk 0:01:32.8]} 16... Nc5 {[%clk 0:01:44.2]} 17.
Rh3 {[%clk 0:01:22.9]} 17... Rh8 {[%clk 0:01:44.7]} 18. Rah1 {[%clk 0:01:14.6]}
18... Qf6 {[%clk 0:01:45.4]} 19. hxg6 {[%clk 0:01:03.8]} 19... hxg6 {[%clk
0:01:46]} 20. Nd2 {[%clk 0:00:54]} 20... Qf4 {[%clk 0:01:24.5]} 21. g3 {[%clk
0:00:43.3]} 21... Qxd2+ {[%clk 0:01:18.1]} 22. Qxd2 {[%clk 0:00:44.1]} 22...
Bxd2 {[%clk 0:01:20]} 23. Kxd2 {[%clk 0:00:45.6]} 23... Rxh3 {[%clk 0:01:21.9]}
24. Rxh3 {[%clk 0:00:46.3]} 24... Rf8 {[%clk 0:01:22.7]} 25. Ke3 {[%clk
0:00:40.2]} 25... f5 {[%clk 0:01:19.1]} 26. f3 {[%clk 0:00:39.7]} 26... f4+
{[%clk 0:01:12]} 27. gxf4 {[%clk 0:00:38.6]} 27... exf4+ {[%clk 0:01:12.9]} 28.
Kd4 {[%clk 0:00:34.8]} 28... g5 {[%clk 0:01:05.8]} 29. Nb5 {[%clk 0:00:34.1]}
29... Rf7 {[%clk 0:01:06.8]} 30. e5 {[%clk 0:00:30.9]} 30... g4 {[%clk
0:00:41.4]} 31. fxg4 {[%clk 0:00:27.2]} 31... f3 {[%clk 0:00:42.8]} 32. Rh1
{[%clk 0:00:26.5]} 32... Rf4+ {[%clk 0:00:39.5]} 33. Ke3 {[%clk 0:00:25.6]}
33... dxe5 {[%clk 0:00:39.8]} 34. b3 {[%clk 0:00:15.6]} 34... Rf7 {[%clk
0:00:35.6]} 35. Rf1 {[%clk 0:00:12.3]} 35... e4 {[%clk 0:00:37]} 36. Kd4 {[%clk
0:00:09.8]} 36... b6 {[%clk 0:00:37.3]} 37. d6 {[%clk 0:00:07.6]} 37... cxd6
{[%clk 0:00:37.2]} 38. Nxd6 {[%clk 0:00:08.7]} 38... Rd7 {[%clk 0:00:38.9]} 39.
Ke5 {[%clk 0:00:09.7]} 39... Rxd6 {[%clk 0:00:40.2]} 40. Kxd6 {[%clk 0:00:10.5]}
40... Nd3 {[%clk 0:00:38.4]} 41. Kd5 {[%clk 0:00:10.1]} 41... e3 {[%clk
0:00:39]} 42. Rxf3 {[%clk 0:00:10.1]} 42... e2 {[%clk 0:00:39.5]} 43. Re3 {[%clk
0:00:11.5]} 43... Kf6 {[%clk 0:00:38.5]} 44. Kc6 {[%clk 0:00:07.6]} 44... e1=Q
{[%clk 0:00:37.3]} 45. Rxe1 {[%clk 0:00:09]} 45... Nxe1 {[%clk 0:00:39.2]} 46.
Kxb6 {[%clk 0:00:10.4]} 46... Nf3 {[%clk 0:00:27.7]} 47. c5 {[%clk 0:00:09.1]}
47... Ke6 {[%clk 0:00:29.6]} 48. Kxa5 {[%clk 0:00:09]} 48... Kd5 {[%clk
0:00:30.4]} 49. b4 {[%clk 0:00:10.3]} 49... Kc6 {[%clk 0:00:31.6]} 50. a4 {[%clk
0:00:10.6]} 50... Ne5 {[%clk 0:00:31.2]} 51. g5 {[%clk 0:00:10.1]} 51... Ng6
{[%clk 0:00:32.4]} 52. Ka6 {[%clk 0:00:10.7]} 52... Ne7 {[%clk 0:00:33.2]} 53.
a5 {[%clk 0:00:10.9]} 53... Ng6 {[%clk 0:00:33]} 54. Ka7 {[%clk 0:00:07.8]}
54... Ne7 {[%clk 0:00:33.5]} 55. a6 {[%clk 0:00:08]} 55... Kc7 {[%clk
0:00:34.8]} 56. b5 {[%clk 0:00:08]} 56... Nc8+ {[%clk 0:00:35.2]} 57. Ka8 {[%clk
0:00:08.3]} 57... Ne7 {[%clk 0:00:35.9]} 58. b6+ {[%clk 0:00:08.8]} 58... Kd7
{[%clk 0:00:37.3]} 59. b7 {[%clk 0:00:09.7]} 1-0

[Event "*** MasterClass Titled Tuesday Blitz"]
[Site "Chess.com"]
[Date "2017.12.12"]
[Round "2"]
[White "champ1000"]
[Black "arna"]
[Result "1-0"]
[WhiteElo "2255"]
[BlackElo "2149"]
[TimeControl "180+2"]
[EndTime "13:24:23 PST"]
[Termination "champ1000 won by checkmate"]

1. e4 {[%clk 0:03:01.9]} 1... c5 {[%clk 0:02:53.8]} 2. Nf3 {[%clk 0:03:01.5]}
2... Nc6 {[%clk 0:02:50.7]} 3. d4 {[%clk 0:02:59.8]} 3... cxd4 {[%clk
0:02:51.8]} 4. Nxd4 {[%clk 0:03:00.4]} 4... e5 {[%clk 0:02:49.7]} 5. Nb5 {[%clk
0:02:59.5]} 5... d6 {[%clk 0:02:46.2]} 6. c4 {[%clk 0:03:00]} 6... Be7 {[%clk
0:02:34.1]} 7. N1c3 {[%clk 0:02:53.9]} 7... a6 {[%clk 0:02:35.2]} 8. Na3 {[%clk
0:02:54.4]} 8... f5 {[%clk 0:02:36.5]} 9. Bd3 {[%clk 0:02:47.3]} 9... f4 {[%clk
0:02:30.8]} 10. g3 {[%clk 0:02:40.4]} 10... Nf6 {[%clk 0:02:26.9]} 11. Nc2
{[%clk 0:02:35.2]} 11... Bh3 {[%clk 0:01:47.8]} 12. Nd5 {[%clk 0:01:54.6]} 12...
O-O {[%clk 0:00:58.5]} 13. Qf3 {[%clk 0:01:27.5]} 13... Bg4 {[%clk 0:00:28.2]}
14. Nxf6+ {[%clk 0:01:27.1]} 14... Rxf6 {[%clk 0:00:20.4]} 15. Qxg4 {[%clk
0:01:26.6]} 15... Qf8 {[%clk 0:00:10.8]} 16. Bd2 {[%clk 0:01:05.6]} 16... b5
{[%clk 0:00:09.1]} 17. cxb5 {[%clk 0:01:03.6]} 17... axb5 {[%clk 0:00:11]} 18.
Bxb5 {[%clk 0:01:02.4]} 18... Na7 {[%clk 0:00:09.3]} 19. Bc4+ {[%clk 0:01:02.9]}
19... Kh8 {[%clk 0:00:10.9]} 20. gxf4 {[%clk 0:00:55.9]} 20... exf4 {[%clk
0:00:10.7]} 21. Bc3 {[%clk 0:00:57.1]} 21... Rg6 {[%clk 0:00:10.7]} 22. Qf3
{[%clk 0:00:55.9]} 22... Rc8 {[%clk 0:00:11.2]} 23. Bd5 {[%clk 0:00:53.5]} 23...
Nb5 {[%clk 0:00:11.9]} 24. Nd4 {[%clk 0:00:53.6]} 24... Nxd4 {[%clk 0:00:10]}
25. Bxd4 {[%clk 0:00:54.3]} 25... Rc2 {[%clk 0:00:11.9]} 26. Bb3 {[%clk
0:00:45.2]} 26... Rc8 {[%clk 0:00:08.9]} 27. Ke2 {[%clk 0:00:45.7]} 27... Qe8
{[%clk 0:00:08.8]} 28. Rhg1 {[%clk 0:00:41.3]} 28... Bf6 {[%clk 0:00:06.2]} 29.
Rxg6 {[%clk 0:00:36.2]} 29... Qxg6 {[%clk 0:00:06.5]} 30. Rd1 {[%clk 0:00:32.2]}
30... Be5 {[%clk 0:00:05.5]} 31. Bxe5 {[%clk 0:00:30.4]} 31... dxe5 {[%clk
0:00:07.4]} 32. a4 {[%clk 0:00:28.7]} 32... h6 {[%clk 0:00:07.5]} 33. Kf1 {[%clk
0:00:26.3]} 33... Rb8 {[%clk 0:00:07.2]} 34. Qd3 {[%clk 0:00:22.7]} 34... Qb6
{[%clk 0:00:05.9]} 35. Be6 {[%clk 0:00:20.5]} 35... Qxb2 {[%clk 0:00:06.3]} 36.
Bf5 {[%clk 0:00:19.8]} 36... Qb6 {[%clk 0:00:05.1]} 37. Qd6 {[%clk 0:00:19.2]}
37... g6 {[%clk 0:00:04.1]} 38. Qxg6 {[%clk 0:00:16]} 38... Qxg6 {[%clk
0:00:04.8]} 39. Bxg6 {[%clk 0:00:17.3]} 39... f3 {[%clk 0:00:06.7]} 40. Bh5
{[%clk 0:00:17.7]} 40... Kg7 {[%clk 0:00:07.8]} 41. Bxf3 {[%clk 0:00:18]} 41...
Rb3 {[%clk 0:00:08.1]} 42. Be2 {[%clk 0:00:18.3]} 42... Ra3 {[%clk 0:00:09.3]}
43. Bb5 {[%clk 0:00:19.4]} 43... Kf6 {[%clk 0:00:10.6]} 44. Rd6+ {[%clk
0:00:20.4]} 44... Kg5 {[%clk 0:00:12]} 45. Kg2 {[%clk 0:00:18.8]} 45... h5
{[%clk 0:00:13]} 46. f3 {[%clk 0:00:19]} 46... Kh4 {[%clk 0:00:10.3]} 47. Re6
{[%clk 0:00:19.4]} 47... Ra2+ {[%clk 0:00:10.3]} 48. Kg1 {[%clk 0:00:20.7]}
48... Ra1+ {[%clk 0:00:07.9]} 49. Kf2 {[%clk 0:00:22]} 49... Ra2+ {[%clk
0:00:09.6]} 50. Ke3 {[%clk 0:00:20.9]} 50... Ra3+ {[%clk 0:00:11.2]} 51. Bd3
{[%clk 0:00:20.7]} 51... Rxa4 {[%clk 0:00:09.7]} 52. Rxe5 {[%clk 0:00:22.4]}
52... Ra2 {[%clk 0:00:09.3]} 53. Be2 {[%clk 0:00:23.7]} 53... Ra3+ {[%clk
0:00:09.3]} 54. Kf2 {[%clk 0:00:25.1]} 54... Ra2 {[%clk 0:00:09.7]} 55. f4
{[%clk 0:00:25.5]} 55... Ra1 {[%clk 0:00:07.9]} 56. Rxh5# {[%clk 0:00:26.3]} 1-0